[Event "POL-chT 1 Liga 2019"]
[Site "Dzwirzyno"]
[Date "2019.09.08"]
[Round "2.12"]
[White "Jablonska, Sabina"]
[Black "Gosciniak, Maria"]
[Result "1-0"]
[ECO "A40"]
[WhiteElo "1928"]
[BlackElo "2132"]
[Annotator "NA"]
[PlyCount "127"]
[EventDate "2019.09.07"]
[EventType "team-tourn"]
[EventCountry "POL"]
[SourceTitle "playchess.com"]
[Source "ChessBase"]
[SourceQuality "1"]
[TimeControl "40/5400+30:1800+30"]

1. d4 {[%emt 0:00:00]} g6 {[%emt 0:01:15]} 2. e4 {[%emt 0:01:20]} c6 {[%emt 0:00:06]} 3. Nf3 {[%emt 0:02:11]} d5 {[%emt 0:00:27]} 4. exd5 {[%emt 0:03:32]} cxd5 {[%emt 0:00:02]} 5. c4 {[%emt 0:05:49]} Bg7 {[%emt 0:00:28]} 6. Nc3 {[%emt 0:08:18]} Nf6 {[%emt 0:01:09]} 7. c5 {[%emt 0:04:02]} O-O {[%emt 0:00:21]} 8. Bd3 {[%emt 0:07:20]} Bg4 {[%emt 0:03:31]} 9. Bf4 {[%emt 0:12:17]} Nc6 {[%emt 0:02:26]} 10. Be2 {[%emt 0:06:34]} Bxf3 {[%emt 0:20:06]} 11. Bxf3 {[%emt 0:02:45]} a6 {[%emt 0:05:13]} 12. O-O {[%emt 0:04:15]} e6 {[%emt 0:00:37]} 13. Rb1 {[%emt 0:02:33]} Nd7 {[%emt 0:02:21]} 14. Ne2 {[%emt 0:06:21]} g5 {[%emt 0:07:35]} 15. Bd6 {[%emt 0:03:58]} Re8 {[%emt 0:00:11]} 16. b4 {[%emt 0:01:31]} Qf6 {[%emt 0:12:11]} 17. Qd2 {[%emt 0:02:37]} b5 {[%emt 0:12:31]} 18. Rfd1 {[%emt 0:05:20]} Nf8 {[%emt 0:01:19]} 19. Rb3 {[%emt 0:01:21]} Ng6 {[%emt 0:00:31]} 20. g3 {[%emt 0:02:25]} Nge7 {[%emt 0:02:30]} 21. Bh5 {[%emt 0:07:26]} Nf5 {[%emt 0:18:30]} 22. Rf3 {[%emt 0:00:56]} Ncxd4 {[%emt 0:03:53]} 23. Nxd4 {[%emt 0:01:19]} Qxd4 {[%emt 0:00:01]} 24. Qxd4 {[%emt 0:01:32]} Nxd4 {[%emt 0:01:37]} 25. Bxf7+ {[%emt 0:00:15]} Kh8 {[%emt 0:00:02]} 26. Rfd3 {[%emt 0:00:50]} Nc6 {[%emt 0:01:53]} 27. Bxe8 {[%emt 0:00:54]} Rxe8 {[%emt 0:00:01]} 28. a3 {[%emt 0:00:27]} Kg8 {[%emt 0:00:02]} 29. Re1 {[%emt 0:00:46]} Kf7 {[%emt 0:01:31]} 30. Rf3+ {[%emt 0:00:12]} Kg6 {[%emt 0:00:13]} 31. Rd3 {[%emt 0:00:16]} Kf7 {[%emt 0:00:01]} 32. f4 {[%emt 0:00:15]} gxf4 {[%emt 0:00:37]} 33. gxf4 {[%emt 0:00:01]} Bd4+ {[%emt 0:00:12]} 34. Kg2 {[%emt 0:01:30]} Rg8+ {[%emt 0:00:04]} 35. Rg3 {[%emt 0:01:32]} Rxg3+ {[%emt 0:00:16]} 36. hxg3 {[%emt 0:00:06]} Bb2 {[%emt 0:00:07]} 37. Re3 {[%emt 0:00:46]} h5 {[%emt 0:00:33]} 38. Kh3 {[%emt 0:02:38]} Bd4 {[%emt 0:00:38]} 39. Re2 {[%emt 0:01:05]} Bf6 {[%emt 0:00:13]} 40. Rd2 {[%emt 0:00:00]} Kg6 {[%emt 0:00:00]} 41. g4 {[%emt 0:06:46]} hxg4+ {[%emt 0:00:49]} 42. Kxg4 {[%emt 0:00:02]} Bc3 {[%emt 0:00:48]} 43. Rd3 {[%emt 0:01:42]} Bb2 {[%emt 0:00:24]} 44. Re3 {[%emt 0:02:32]} Kf7 {[%emt 0:00:11]} 45. Be5 {[%emt 0:03:11]} Bxe5 {[%emt 0:08:19]} 46. fxe5 {[%emt 0:00:46]} a5 {[%emt 0:00:02]} 47. bxa5 {[%emt 0:11:20]} Nxa5 {[%emt 0:00:06]} 48. Kf4 {[%emt 0:00:11]} Ke7 {[%emt 0:00:57]} 49. Rc3 {[%emt 0:01:44]} Kd7 {[%emt 0:03:46]} 50. Kg5 {[%emt 0:02:47]} Kc6 {[%emt 0:15:18]} 51. Kf6 {[%emt 0:00:12]} d4 {[%emt 0:00:01]} 52. Rh3 {[%emt 0:05:41]} Nb7 {[%emt 0:00:15]} 53. Kxe6 {[%emt 0:00:35]} Nxc5+ {[%emt 0:00:02]} 54. Kf5 {[%emt 0:01:17]} d3 {[%emt 0:01:30]} 55. Rh2 {[%emt 0:00:34]} Kd5 {[%emt 0:02:06]} 56. Rd2 {[%emt 0:00:19]} Kd4 {[%emt 0:06:47]} 57. e6 {[%emt 0:00:32]} Nxe6 {[%emt 0:00:25]} 58. Kxe6 {[%emt 0:00:06]} Kc3 {[%emt 0:00:01]} 59. Rd1 {[%emt 0:00:28]} Kc2 {[%emt 0:01:55]} 60. Rh1 {[%emt 0:00:07]} Kb3 {[%emt 0:00:27]} 61. Kd5 {[%emt 0:00:50]} Kxa3 {[%emt 0:00:12]} 62. Rh3 {[%emt 0:00:06]} Kb2 {[%emt 0:00:51]} 63. Rxd3 {[%emt 0:00:14]} Kc2 {[%emt 0:00:05]} 64. Rh3 {[%emt 0:00:15]} 1-0

[Event "POL-chT 1 Liga 2019"]
[Site "Dzwirzyno"]
[Date "2019.09.08"]
[Round "2.16"]
[White "Nowak, Mikolaj"]
[Black "Walter, Szymon"]
[Result "1-0"]
[ECO "A50"]
[WhiteElo "2262"]
[BlackElo "2311"]
[Annotator "NA"]
[PlyCount "91"]
[EventDate "2019.09.07"]
[EventType "team-tourn"]
[EventCountry "POL"]
[SourceTitle "playchess.com"]
[Source "ChessBase"]
[SourceQuality "1"]
[TimeControl "40/5400+30:1800+30"]

1. d4 {[%emt 0:00:56]} Nf6 {[%emt 0:00:45]} 2. c4 {[%emt 0:00:06]} Nc6 {[%emt 0:01:07]} 3. Nf3 {[%emt 0:05:42]} e6 {[%emt 0:01:53]} 4. Bf4 {[%emt 0:10:19]} d6 {[%emt 0:03:22]} 5. Nc3 {[%emt 0:01:21]} g6 {[%emt 0:01:11]} 6. e3 {[%emt 0:08:32]} Bg7 {[%emt 0:03:42]} 7. h3 {[%emt 0:01:16]} O-O {[%emt 0:01:14]} 8. Be2 {[%emt 0:00:58]} Qe8 {[%emt 0:04:19]} 9. O-O {[%emt 0:02:19]} e5 {[%emt 0:01:43]} 10. Bh2 {[%emt 0:02:17]} Bf5 {[%emt 0:03:44]} 11. d5 {[%emt 0:05:15]} Ne7 {[%emt 0:05:31]} 12. Nd2 {[%emt 0:03:21]} h5 {[%emt 0:05:46]} 13. b4 {[%emt 0:08:38]} a5 {[%emt 0:06:50]} 14. bxa5 {[%emt 0:02:54]} Rxa5 {[%emt 0:00:39]} 15. e4 {[%emt 0:02:27]} Bd7 {[%emt 0:03:20]} 16. Nb3 {[%emt 0:00:08]} Ra8 {[%emt 0:00:50]} 17. c5 {[%emt 0:02:21]} Nh7 {[%emt 0:01:05]} 18. a4 {[%emt 0:05:17]} f5 {[%emt 0:04:40]} 19. Nb5 {[%emt 0:05:05]} Qb8 {[%emt 0:00:59]} 20. cxd6 {[%emt 0:01:41]} cxd6 {[%emt 0:00:14]} 21. f3 {[%emt 0:01:12]} Bh6 {[%emt 0:11:36]} 22. Kh1 {[%emt 0:02:54]} Nf6 {[%emt 0:02:42]} 23. Qb1 {[%emt 0:09:20]} h4 {[%emt 0:01:05]} 24. Qe1 {[%emt 0:01:39]} Bg5 {[%emt 0:21:18]} 25. Qb4 {[%emt 0:02:43]} Bxb5 {[%emt 0:00:30]} 26. Bxb5 {[%emt 0:00:22]} Nh5 {[%emt 0:00:34]} 27. Na5 {[%emt 0:03:43]} Be3 {[%emt 0:01:11]} 28. Nc4 {[%emt 0:01:12]} Bc5 {[%emt 0:00:23]} 29. Qe1 {[%emt 0:00:44]} g5 {[%emt 0:09:12]} 30. Qc1 {[%emt 0:00:49]} f4 {[%emt 0:00:14]} 31. Nxe5 {[%emt 0:00:58]} Be3 {[%emt 0:00:20]} 32. Qa3 {[%emt 0:00:43]} Bc5 {[%emt 0:00:40]} 33. Qc1 {[%emt 0:01:10]} Be3 {[%emt 0:00:30]} 34. Qa3 {[%emt 0:00:30]} Bc5 {[%emt 0:00:11]} 35. Qc3 {[%emt 0:02:17]} Qa7 {[%emt 0:00:09]} 36. Nd7 {[%emt 0:00:42]} Bd4 {[%emt 0:00:08]} 37. Qa3 {[%emt 0:01:42]} Bxa1 {[%emt 0:01:33]} 38. Nxf8 {[%emt 0:00:44]} Rxf8 {[%emt 0:03:00]} 39. Qxa1 {[%emt 0:02:01]} Rc8 {[%emt 0:00:35]} 40. Bd7 {[%emt 0:00:00]} Rc2 {[%emt 0:00:00]} 41. Be6+ {[%emt 0:02:31]} Kh7 {[%emt 0:00:49]} 42. Bg4 {[%emt 0:07:10]} Ng3+ {[%emt 0:03:51]} 43. Bxg3 {[%emt 0:00:06]} hxg3 {[%emt 0:00:37]} 44. Qf6 {[%emt 0:02:17]} b5 {[%emt 0:00:06]} 45. Qf7+ {[%emt 0:01:24]} Kh8 {[%emt 0:00:38]} 46. Bf5 {[%emt 0:00:58]} 1-0

[Event "POL-chT 1 Liga 2019"]
[Site "Dzwirzyno"]
[Date "2019.09.08"]
[Round "2.18"]
[White "Cieslak, Wiktoria"]
[Black "Malicka, Maria"]
[Result "1/2-1/2"]
[ECO "C54"]
[WhiteElo "2063"]
[BlackElo "2095"]
[Annotator "NA"]
[PlyCount "132"]
[EventDate "2019.09.07"]
[EventType "team-tourn"]
[EventCountry "POL"]
[SourceTitle "playchess.com"]
[Source "ChessBase"]
[SourceQuality "1"]
[TimeControl "40/5400+30:1800+30"]

1. e4 {[%emt 0:01:21]} e5 {[%emt 0:00:00]} 2. Nf3 {[%emt 0:00:23]} Nc6 {[%emt 0:00:00]} 3. Bc4 {[%emt 0:00:07]} Bc5 {[%emt 0:00:00]} 4. c3 {[%emt 0:00:03]} Nf6 {[%emt 0:00:00]} 5. d4 {[%emt 0:00:05]} exd4 {[%emt 0:00:00]} 6. cxd4 {[%emt 0:00:06]} Bb4+ {[%emt 0:00:00]} 7. Nbd2 {[%emt 0:00:10]} Nxe4 {[%emt 0:13:46]} 8. d5 {[%emt 0:00:17]} Ne7 {[%emt 0:04:20]} 9. O-O {[%emt 0:00:27]} Nxd2 {[%emt 0:05:10]} 10. Bxd2 {[%emt 0:00:18]} Bxd2 {[%emt 0:00:16]} 11. d6 {[%emt 0:02:04]} cxd6 {[%emt 0:03:13]} 12. Qxd2 {[%emt 0:01:21]} O-O {[%emt 0:01:27]} 13. Qxd6 {[%emt 0:03:53]} Nf5 {[%emt 0:02:35]} 14. Qf4 {[%emt 0:01:31]} d6 {[%emt 0:04:24]} 15. Rad1 {[%emt 0:02:10]} Be6 {[%emt 0:06:25]} 16. Bd3 {[%emt 0:05:47]} Qf6 {[%emt 0:00:43]} 17. Bxf5 {[%emt 0:05:33]} Qxf5 {[%emt 0:00:09]} 18. Qxf5 {[%emt 0:06:23]} Bxf5 {[%emt 0:00:02]} 19. Rxd6 {[%emt 0:00:07]} Rfd8 {[%emt 0:00:39]} 20. Rfd1 {[%emt 0:00:15]} Rxd6 {[%emt 0:00:11]} 21. Rxd6 {[%emt 0:00:06]} Rc8 {[%emt 0:01:53]} 22. h3 {[%emt 0:00:25]} Kf8 {[%emt 0:05:23]} 23. Nd4 {[%emt 0:02:32]} Be4 {[%emt 0:04:19]} 24. Nb5 {[%emt 0:03:14]} Rc1+ {[%emt 0:05:32]} 25. Kh2 {[%emt 0:00:04]} Rc2 {[%emt 0:00:15]} 26. Nc3 {[%emt 0:03:05]} Bc6 {[%emt 0:06:24]} 27. Nd1 {[%emt 0:01:17]} Ke7 {[%emt 0:00:21]} 28. Rd4 {[%emt 0:00:14]} Ke6 {[%emt 0:02:00]} 29. Kg3 {[%emt 0:02:08]} Ke5 {[%emt 0:00:42]} 30. Rd8 {[%emt 0:01:05]} f5 {[%emt 0:01:56]} 31. Rf8 {[%emt 0:04:43]} g5 {[%emt 0:02:20]} 32. Rxf5+ {[%emt 0:01:15]} Kxf5 {[%emt 0:00:07]} 33. Ne3+ {[%emt 0:00:02]} Ke4 {[%emt 0:00:13]} 34. Nxc2 {[%emt 0:00:05]} Bd7 {[%emt 0:04:47]} 35. Ne1 {[%emt 0:06:04]} Be6 {[%emt 0:04:09]} 36. a3 {[%emt 0:00:32]} a5 {[%emt 0:05:24]} 37. h4 {[%emt 0:03:04]} g4 {[%emt 0:00:45]} 38. h5 {[%emt 0:00:38]} Kf5 {[%emt 0:05:42]} 39. Kh4 {[%emt 0:10:32]} h6 {[%emt 0:07:45]} 40. Nc2 {[%emt 0:00:00]} Kf4 {[%emt 0:00:00]} 41. Ne3 {[%emt 0:13:59]} a4 {[%emt 0:08:40]} 42. Nf1 {[%emt 0:00:47]} Ke4 {[%emt 0:05:20]} 43. Nh2 {[%emt 0:29:57]} Kd3 {[%emt 0:00:22]} 44. Nxg4 {[%emt 0:00:05]} Kc2 {[%emt 0:00:07]} 45. Nxh6 {[%emt 0:00:02]} Kxb2 {[%emt 0:00:08]} 46. f4 {[%emt 0:00:01]} Kxa3 {[%emt 0:00:54]} 47. f5 {[%emt 0:00:02]} Bd5 {[%emt 0:02:02]} 48. f6 {[%emt 0:00:06]} Kb3 {[%emt 0:04:35]} 49. f7 {[%emt 0:00:03]} Bxf7 {[%emt 0:00:02]} 50. Nxf7 {[%emt 0:00:03]} a3 {[%emt 0:00:04]} 51. h6 {[%emt 0:00:05]} a2 {[%emt 0:00:02]} 52. h7 {[%emt 0:00:05]} a1=Q {[%emt 0:00:05]} 53. h8=Q {[%emt 0:00:06]} Qh1+ {[%emt 0:00:32]} 54. Kg3 {[%emt 0:00:16]} Qxh8 {[%emt 0:14:26]} 55. Nxh8 {[%emt 0:00:08]} b5 {[%emt 0:00:02]} 56. Kf4 {[%emt 0:02:01]} b4 {[%emt 0:00:11]} 57. g4 {[%emt 0:01:07]} Kc3 {[%emt 0:00:36]} 58. g5 {[%emt 0:00:21]} b3 {[%emt 0:00:03]} 59. g6 {[%emt 0:00:07]} b2 {[%emt 0:00:02]} 60. g7 {[%emt 0:00:05]} b1=Q {[%emt 0:00:04]} 61. g8=Q {[%emt 0:00:07]} Qf1+ {[%emt 0:01:18]} 62. Ke5 {[%emt 0:00:17]} Qe2+ {[%emt 0:00:11]} 63. Kf6 {[%emt 0:00:19]} Qf2+ {[%emt 0:00:48]} 64. Kg7 {[%emt 0:00:18]} Qd4+ {[%emt 0:00:04]} 65. Kh7 {[%emt 0:00:21]} Qh4+ {[%emt 0:00:05]} 66. Kg7 {[%emt 0:00:30]} Qd4+ {[%emt 0:00:03]} 1/2-1/2

[Event "POL-chT 1 Liga 2019"]
[Site "Dzwirzyno"]
[Date "2019.09.08"]
[Round "2.19"]
[White "Kolago, Marcin"]
[Black "Antoniewski, Rafal"]
[Result "1/2-1/2"]
[ECO "B15"]
[WhiteElo "2340"]
[BlackElo "2497"]
[Annotator "ChessBase"]
[PlyCount "81"]
[EventDate "2019.09.07"]
[EventType "team-tourn"]
[EventCountry "POL"]
[SourceTitle "playchess.com"]
[Source "ChessBase"]
[SourceQuality "1"]
[TimeControl "40/5400+30:1800+30"]

1. e4 {[%emt 0:00:00]} c6 {[%emt 0:00:05]} 2. d4 {[%emt 0:00:00]} d5 {[%emt 0:00:06]} 3. Nd2 {[%emt 0:00:09]} dxe4 {[%emt 0:00:37]} 4. Nxe4 {[%emt 0:00:04]} Nf6 {[%emt 0:02:10]} 5. Nxf6+ {[%emt 0:02:58]} exf6 {[%emt 0:00:18]} 6. Nf3 {[%emt 0:01:39]} Bd6 {[%emt 0:00:53]} 7. Be2 {[%emt 0:01:37]} O-O {[%emt 0:00:07]} 8. O-O {[%emt 0:00:08]} Re8 {[%emt 0:01:33]} 9. Re1 {[%emt 0:01:27]} Nd7 {[%emt 0:01:45]} 10. Bd3 {[%emt 0:02:37]} Rxe1+ {[%emt 0:02:33]} 11. Qxe1 {[%emt 0:00:12]} Nf8 {[%emt 0:00:27]} 12. Bd2 {[%emt 0:09:52]} Bg4 {[%emt 0:06:13]} 13. Qe4 {[%emt 0:04:26]} Bxf3 {[%emt 0:06:45]} 14. Qxf3 {[%emt 0:00:14]} Qb6 {[%emt 0:00:07]} 15. Bc3 {[%emt 0:02:34]} Re8 {[%emt 0:00:16]} 16. d5 {[%emt 0:02:42]} cxd5 {[%emt 0:26:44]} 17. Qxd5 {[%emt 0:00:17]} Bc5 {[%emt 0:00:36]} 18. Rf1 {[%emt 0:01:15]} Rd8 {[%emt 0:00:28]} 19. Qf5 {[%emt 0:02:40]} Bb4 {[%emt 0:01:13]} 20. Bxb4 {[%emt 0:04:23]} Qxb4 {[%emt 0:00:07]} 21. Rb1 {[%emt 0:02:09]} b6 {[%emt 0:06:25]} 22. h3 {[%emt 0:02:19]} Qd4 {[%emt 0:02:14]} 23. Qe4 {[%emt 0:01:09]} Qxe4 {[%emt 0:03:51]} 24. Bxe4 {[%emt 0:00:01]} Ne6 {[%emt 0:00:10]} 25. Kf1 {[%emt 0:05:30]} g6 {[%emt 0:05:51]} 26. Bf3 {[%emt 0:05:05]} Rd2 {[%emt 0:07:00]} 27. Bd1 {[%emt 0:04:51]} Nf4 {[%emt 0:00:37]} 28. Ke1 {[%emt 0:00:25]} Rd5 {[%emt 0:01:35]} 29. Bf3 {[%emt 0:02:30]} Rg5 {[%emt 0:00:59]} 30. Kf1 {[%emt 0:01:17]} Rc5 {[%emt 0:00:21]} 31. c3 {[%emt 0:01:35]} Kf8 {[%emt 0:00:14]} 32. Rd1 {[%emt 0:02:30]} Ke7 {[%emt 0:00:06]} 33. Rd4 {[%emt 0:00:55]} Ne6 {[%emt 0:00:39]} 34. Rd5 {[%emt 0:06:10]} Rc7 {[%emt 0:01:06]} 35. g3 {[%emt 0:01:17]} Nc5 {[%emt 0:01:10]} 36. Rd4 {[%emt 0:02:34]} f5 {[%emt 0:00:50]} 37. Ke2 {[%emt 0:03:26]} Ne6 {[%emt 0:00:22]} 38. Rd5 {[%emt 0:01:59]} h5 {[%emt 0:04:00]} 39. Kd2 {[%emt 0:04:30]} Kf6 {[%emt 0:11:06]} 40. h4 {[%emt 0:00:00]} f4 {[%emt 0:00:00]} 41. b4 {[%emt 0:11:07]} 1/2-1/2

[Event "POL-chT 1 Liga 2019"]
[Site "Dzwirzyno"]
[Date "2019.09.08"]
[Round "2.22"]
[White "Bartel, Michal"]
[Black "Jaroch, Karol"]
[Result "1/2-1/2"]
[ECO "D02"]
[WhiteElo "2291"]
[BlackElo "2236"]
[Annotator "NA"]
[PlyCount "108"]
[EventDate "2019.09.07"]
[EventType "team-tourn"]
[EventCountry "POL"]
[SourceTitle "playchess.com"]
[Source "ChessBase"]
[SourceQuality "1"]
[TimeControl "40/5400+30:1800+30"]

1. d4 {[%emt 0:00:00]} d5 {[%emt 0:00:00]} 2. Nf3 {[%emt 0:00:00]} Nf6 {[%emt 0:00:05]} 3. Bf4 {[%emt 0:00:00]} e6 {[%emt 0:01:49]} 4. e3 {[%emt 0:00:00]} Be7 {[%emt 0:00:13]} 5. Bd3 {[%emt 0:01:36]} c5 {[%emt 0:02:00]} 6. c3 O-O {[%emt 0:00:11]} 7. Ne5 {[%emt 0:01:20]} Nc6 {[%emt 0:01:29]} 8. Nd2 {[%emt 0:00:48]} Nxe5 {[%emt 0:07:14]} 9. dxe5 {[%emt 0:04:57]} Nd7 {[%emt 0:00:35]} 10. Qh5 {[%emt 0:03:44]} f5 11. h4 {[%emt 0:01:45]} Rf7 {[%emt 0:06:18]} 12. Nf3 {[%emt 0:08:16]} c4 {[%emt 0:12:53]} 13. Bc2 {[%emt 0:02:02]} Qb6 {[%emt 0:06:35]} 14. Rb1 {[%emt 0:07:23]} Nc5 {[%emt 0:03:46]} 15. O-O {[%emt 0:05:15]} Qa6 {[%emt 0:02:20]} 16. Ra1 {[%emt 0:08:21]} Bd7 {[%emt 0:05:06]} 17. Nd4 {[%emt 0:06:18]} g6 {[%emt 0:06:57]} 18. Qh6 {[%emt 0:01:11]} Qb6 {[%emt 0:00:50]} 19. b3 {[%emt 0:04:35]} cxb3 {[%emt 0:10:34]} 20. axb3 {[%emt 0:00:07]} Rc8 {[%emt 0:00:18]} 21. c4 {[%emt 0:05:13]} dxc4 {[%emt 0:00:20]} 22. bxc4 {[%emt 0:00:05]} a6 {[%emt 0:01:08]} 23. f3 {[%emt 0:08:30]} Qd8 {[%emt 0:02:47]} 24. Bg5 {[%emt 0:00:25]} Bf8 {[%emt 0:00:07]} 25. Bxd8 {[%emt 0:00:20]} Bxh6 {[%emt 0:00:04]} 26. Bg5 {[%emt 0:00:11]} Bg7 {[%emt 0:00:04]} 27. Bf4 {[%emt 0:00:12]} b5 {[%emt 0:06:29]} 28. cxb5 {[%emt 0:01:48]} Bxb5 {[%emt 0:00:07]} 29. Rfb1 {[%emt 0:01:07]} Rb7 {[%emt 0:02:48]} 30. Bg3 {[%emt 0:00:47]} Kf7 {[%emt 0:02:42]} 31. f4 {[%emt 0:02:10]} Rcb8 {[%emt 0:00:07]} 32. Be1 {[%emt 0:01:32]} Bf8 {[%emt 0:13:14]} 33. Rd1 {[%emt 0:02:17]} Be7 {[%emt 0:00:56]} 34. Rac1 {[%emt 0:04:39]} Be8 {[%emt 0:03:04]} 35. Kh2 {[%emt 0:02:04]} h6 {[%emt 0:00:05]} 36. Kh3 {[%emt 0:00:22]} g5 {[%emt 0:00:13]} 37. hxg5 {[%emt 0:01:41]} hxg5 {[%emt 0:00:02]} 38. g4 {[%emt 0:00:24]} fxg4+ {[%emt 0:02:50]} 39. Kxg4 {[%emt 0:00:05]} gxf4 {[%emt 0:00:51]} 40. exf4 {[%emt 0:00:00]} Ba4 {[%emt 0:00:00]} 41. Bxa4 {[%emt 0:09:20]} Nxa4 {[%emt 0:01:42]} 42. f5 {[%emt 0:00:36]} Rg8+ {[%emt 0:01:06]} 43. Kf3 {[%emt 0:00:22]} exf5 {[%emt 0:00:29]} 44. e6+ {[%emt 0:01:39]} Kg6 {[%emt 0:01:07]} 45. Bd2 {[%emt 0:00:42]} Kf6 {[%emt 0:00:59]} 46. Rh1 {[%emt 0:05:53]} Bc5 {[%emt 0:04:32]} 47. Rh6+ {[%emt 0:05:03]} Rg6 {[%emt 0:05:14]} 48. Rxg6+ {[%emt 0:00:56]} Kxg6 {[%emt 0:00:01]} 49. Rg1+ {[%emt 0:00:48]} Kf6 {[%emt 0:00:15]} 50. Bg5+ {[%emt 0:00:20]} Ke5 {[%emt 0:01:27]} 51. Nc6+ {[%emt 0:10:29]} Kd6 {[%emt 0:00:17]} 52. e7 {[%emt 0:00:03]} Rxe7 {[%emt 0:00:07]} 53. Bxe7+ {[%emt 0:01:05]} Kxc6 {[%emt 0:00:07]} 54. Bxc5 {[%emt 0:00:44]} Nxc5 {[%emt 0:00:15] Ke4} 1/2-1/2

[Event "POL-chT 1 Liga 2019"]
[Site "Dzwirzyno"]
[Date "2019.09.08"]
[Round "2.23"]
[White "Samborski, Henryk"]
[Black "Sliwerski, Radoslaw"]
[Result "1/2-1/2"]
[ECO "B98"]
[WhiteElo "2098"]
[BlackElo "2078"]
[Annotator "NA"]
[PlyCount "67"]
[EventDate "2019.09.07"]
[EventType "team-tourn"]
[EventCountry "POL"]
[SourceTitle "playchess.com"]
[Source "ChessBase"]
[SourceQuality "1"]
[TimeControl "40/5400+30:1800+30"]

1. e4 {[%emt 0:00:00]} c5 {[%emt 0:00:00]} 2. Nf3 {[%emt 0:00:07]} d6 {[%emt 0:00:00]} 3. d4 {[%emt 0:00:08]} cxd4 {[%emt 0:00:00]} 4. Nxd4 {[%emt 0:00:09]} Nf6 {[%emt 0:00:18]} 5. Nc3 {[%emt 0:00:07]} a6 {[%emt 0:00:13]} 6. Bg5 {[%emt 0:00:18]} e6 {[%emt 0:00:10]} 7. f4 {[%emt 0:01:10]} Be7 {[%emt 0:00:02]} 8. Qe2 {[%emt 0:01:41]} h6 {[%emt 0:02:14]} 9. Bxf6 {[%emt 0:17:43]} Bxf6 {[%emt 0:00:07]} 10. O-O-O {[%emt 0:00:24]} Nd7 {[%emt 0:04:57]} 11. e5 {[%emt 0:13:42]} dxe5 {[%emt 0:01:17]} 12. Nxe6 {[%emt 0:00:36]} fxe6 {[%emt 0:01:42]} 13. Qh5+ {[%emt 0:01:15]} Kf8 {[%emt 0:03:51]} 14. fxe5 {[%emt 0:08:42]} Qa5 {[%emt 0:03:00]} 15. Bb5 {[%emt 0:08:05]} axb5 {[%emt 0:04:31]} 16. exf6 {[%emt 0:06:27]} b4 {[%emt 0:04:26]} 17. Nb5 {[%emt 0:05:46]} Nxf6 {[%emt 0:03:38]} 18. Rhf1 {[%emt 0:01:33]} Ke7 {[%emt 0:05:34]} 19. Qg6 {[%emt 0:13:58]} Rf8 {[%emt 0:03:17]} 20. Qxg7+ {[%emt 0:00:16]} Rf7 {[%emt 0:00:49]} 21. Qg3 {[%emt 0:00:07]} Ra6 {[%emt 0:14:27]} 22. Nd6 {[%emt 0:02:33]} Rxd6 {[%emt 0:00:12]} 23. Qxd6+ {[%emt 0:00:05]} Ke8 {[%emt 0:00:06]} 24. Rfe1 {[%emt 0:07:45]} Re7 {[%emt 0:05:09]} 25. Kb1 {[%emt 0:04:52]} Nd5 {[%emt 0:02:58]} 26. Re5 {[%emt 0:01:08]} Qd8 {[%emt 0:03:44]} 27. Rexd5 {[%emt 0:02:18]} exd5 {[%emt 0:01:39]} 28. Qg6+ {[%emt 0:00:08]} Rf7 {[%emt 0:01:42]} 29. Re1+ {[%emt 0:02:06]} Kf8 {[%emt 0:01:40]} 30. Qxh6+ {[%emt 0:00:03]} Kg8 {[%emt 0:00:50]} 31. Qg6+ {[%emt 0:00:21]} Kf8 {[%emt 0:00:02]} 32. Qh6+ {[%emt 0:00:13]} Kg8 {[%emt 0:00:19]} 33. Qg6+ {[%emt 0:00:49]} Kf8 {[%emt 0:00:02]} 34. Qh6+ {[%emt 0:00:15]} 1/2-1/2

[Event "POL-chT 1 Liga 2019"]
[Site "Dzwirzyno"]
[Date "2019.09.08"]
[Round "2.25"]
[White "Golubka, Petro"]
[Black "Chylewski, Patryk"]
[Result "1/2-1/2"]
[ECO "B18"]
[WhiteElo "2479"]
[BlackElo "2342"]
[Annotator "ChessBase"]
[PlyCount "41"]
[EventDate "2019.09.07"]
[EventType "team-tourn"]
[EventCountry "POL"]
[SourceTitle "playchess.com"]
[Source "ChessBase"]
[SourceQuality "1"]
[TimeControl "40/5400+30:1800+30"]

1. e4 {[%emt 0:06:15]} c6 {[%emt 0:00:00]} 2. d4 {[%emt 0:02:04]} d5 {[%emt 0:00:00]} 3. Nd2 {[%emt 0:00:12]} dxe4 {[%emt 0:00:00]} 4. Nxe4 {[%emt 0:00:03]} Bf5 {[%emt 0:00:00]} 5. Ng3 {[%emt 0:00:03]} Bg6 {[%emt 0:00:02]} 6. h4 {[%emt 0:02:18]} h6 {[%emt 0:00:07]} 7. Nf3 {[%emt 0:00:04]} e6 {[%emt 0:00:09]} 8. h5 {[%emt 0:01:40]} Bh7 {[%emt 0:00:06]} 9. Bd3 {[%emt 0:00:21]} Bxd3 {[%emt 0:00:07]} 10. Qxd3 {[%emt 0:00:03]} Nf6 {[%emt 0:00:09]} 11. Be3 {[%emt 0:10:42]} Qa5+ {[%emt 0:03:58]} 12. Bd2 {[%emt 0:00:14]} Qb6 {[%emt 0:00:08]} 13. O-O-O {[%emt 0:01:58]} Qa6 {[%emt 0:00:07]} 14. Qxa6 {[%emt 0:01:25]} Nxa6 {[%emt 0:00:16]} 15. Ne5 {[%emt 0:00:38]} c5 {[%emt 0:04:31]} 16. Be3 {[%emt 0:10:17]} cxd4 {[%emt 0:05:12]} 17. Bxd4 {[%emt 0:00:16]} Bc5 {[%emt 0:00:30]} 18. Rh4 {[%emt 0:02:40]} O-O {[%emt 0:09:20]} 19. Bxc5 {[%emt 0:06:06]} Nxc5 {[%emt 0:00:09]} 20. Rhd4 {[%emt 0:00:27]} Rac8 {[%emt 0:00:55]} 21. b3 {[%emt 0:10:49]} 1/2-1/2

[Event "POL-chT 1 Liga 2019"]
[Site "Dzwirzyno"]
[Date "2019.09.08"]
[Round "2.26"]
[White "Cyborowski, Lukasz"]
[Black "Zezulkin, Jurij"]
[Result "*"]
[ECO "A58"]
[WhiteElo "2509"]
[BlackElo "2434"]
[Annotator "RC"]
[PlyCount "26"]
[EventDate "2019.09.07"]
[EventType "team-tourn"]
[EventCountry "POL"]
[SourceTitle "playchess.com"]
[Source "ChessBase"]
[SourceQuality "1"]
[TimeControl "40/5400+30:1800+30"]

1. d4 {[%emt 0:00:00]} Nf6 {[%emt 0:00:00]} 2. c4 {[%emt 0:00:00]} c5 {[%emt 0:00:01]} 3. d5 {[%emt 0:00:00]} b5 {[%emt 0:00:07]} 4. cxb5 {[%emt 0:00:00]} a6 {[%emt 0:00:06]} 5. bxa6 {[%emt 0:00:00]} g6 {[%emt 0:00:07]} 6. Nc3 {[%emt 0:00:00]} Bxa6 {[%emt 0:00:07]} 7. e4 {[%emt 0:00:00]} Bxf1 {[%emt 0:00:05]} 8. Kxf1 {[%emt 0:00:00]} d6 {[%emt 0:00:08]} 9. g3 {[%emt 0:00:06]} Bg7 {[%emt 0:00:07]} 10. Kg2 {[%emt 0:00:05]} O-O {[%emt 0:00:10]} 11. Nf3 {[%emt 0:00:05]} Qb6 {[%emt 0:00:08]} 12. a4 {[%emt 0:00:55]} Na6 {[%emt 0:00:23]} 13. Nd2 {[%emt 0:01:44]} Nc7 {[%emt 0:01:02]} *